fUSD/lending_fUSD_20251225
["ID","MTS","AMOUNT","RATE_DAILY","PERIOD"]
[399798343,1766681432894,-150.0,0.00015854,2]
[399798344,1766681432904,-1000.0,0.000159,2]
[399798345,1766681432916,-150.0,0.00015905,2]
[399798346,1766681432927,-150.0,0.00015967,2]
[399798347,1766681432937,-150.0,0.00015967,2]
[399798348,1766681432948,-150.0,0.00015967,2]
[399798349,1766681432959,-150.0,0.00015967,2]
[399798350,1766681432969,-150.0,0.00016016,2]
[399798351,1766681432981,-150.0,0.00016016,2]
[399798352,1766681432992,-277.53238456,0.00016046,2]
[399798353,1766681433003,-166.66,0.00016051,2]
[399798354,1766681433015,-150.0,0.0001606,2]
[399798355,1766681433037,-150.0,0.0001608,2]
[399798356,1766681433047,-150.0,0.00016137,2]
[399798357,1766681433057,-150.0,0.00016137,2]
[399798358,1766681433070,-150.0,0.00016137,2]
[399798359,1766681433081,-578.20924308,0.00016149,2]
[399798360,1766681433092,-200.0,0.00016149,2]
[399798361,1766681433102,-207.4,0.00016149,2]
[399798362,1766681433113,-215.0738,0.00016149,2]
[399798363,1766681433124,-223.0315306,0.00016149,2]
[399798364,1766681433135,-231.28369723,0.00016149,2]
[399798365,1766681433145,-239.84119403,0.00016149,2]
[399798366,1766681433157,-248.71531821,0.00016149,2]
[399798367,1766681433168,-257.91778498,0.00016149,2]
[399798368,1766681433179,-267.46074303,0.00016149,2]
[399798369,1766681433189,-277.35679052,0.00016149,2]
[399798370,1766681433201,-322.6107,0.00016149,2]
[399798371,1766681433212,-500.0,0.00016183,2]
[399798372,1766681433223,-150.0,0.00016194,2]
[399798373,1766681433234,-150.0,0.00016214,2]
[399798374,1766681433245,-150.0,0.00016258,2]
[399798375,1766681433257,-150.0,0.00016258,2]
[399798376,1766681433268,-150.0,0.00016307,2]
[399798377,1766681433279,-150.0,0.00016307,2]
[399798378,1766681433289,-150.0,0.00016307,2]
[399798379,1766681433299,-150.0,0.00016307,2]
[399798380,1766681433310,-150.0,0.00016369,2]
[399798381,1766681433321,-500.0,0.00016411,2]
[399798382,1766681433332,-150.0,0.0001642,2]
[399798383,1766681433343,-150.0,0.0001642,2]
[399798384,1766681433355,-150.0,0.0001642,2]
[399798385,1766681433365,-151.0,0.00016428,2]
[399798386,1766681433377,-574.12855637,0.00016428,2]
[399798387,1766681433387,-151.0,0.00016428,2]
[399798388,1766681433399,-500.0,0.00016428,2]
[399798389,1766681433410,-151.0,0.00016428,2]
[399798390,1766681433421,-500.0,0.00016428,2]
[399798391,1766681433431,-151.0,0.00016428,2]
[399798392,1766681433441,-500.0,0.00016428,2]
[399798393,1766681433453,-151.0,0.00016428,2]
[399798394,1766681433463,-500.0,0.00016428,2]
[399798395,1766681433474,-500.0,0.00016428,2]
[399798396,1766681433484,-151.0,0.00016428,2]
[399798397,1766681433497,-500.0,0.00016428,2]
[399798398,1766681433509,-500.0,0.00016428,2]
[399798399,1766681433519,-151.0,0.00016428,2]
[399798400,1766681433537,-500.0,0.00016428,2]
[399798401,1766681433548,-500.0,0.00016428,2]
[399798402,1766681433558,-151.0,0.00016428,2]
[399798403,1766681433569,-500.0,0.00016428,2]
[399798404,1766681433579,-500.0,0.00016428,2]
[399798405,1766681433589,-151.0,0.00016428,2]
[399798406,1766681433600,-500.0,0.00016428,2]
[399798407,1766681433610,-151.0,0.00016428,2]
[399798408,1766681433621,-500.0,0.00016428,2]
[399798409,1766681433631,-151.0,0.00016428,2]
[399798410,1766681433641,-500.0,0.00016428,2]
[399798411,1766681433652,-500.0,0.00016428,2]
[399798412,1766681433663,-500.0,0.00016428,2]
[399798413,1766681433673,-500.0,0.00016428,2]
[399798414,1766681433684,-151.0,0.00016428,2]
[399798415,1766681433695,-500.0,0.00016428,2]
[399798416,1766681433704,-500.0,0.00016428,2]
[399798417,1766681433714,-500.0,0.00016428,2]
[399798418,1766681433725,-500.0,0.00016428,2]
[399798419,1766681433735,-250.0,0.00016428,2]
[399798420,1766681433746,-500.0,0.00016428,2]
[399798421,1766681433757,-250.0,0.00016428,2]
[399798422,1766681433767,-250.0,0.00016428,2]
[399798423,1766681433782,-620.0,0.00016428,2]
[399798424,1766681433793,-250.0,0.00016428,2]
[399798425,1766681433803,-250.0,0.00016428,2]
[399798426,1766681433814,-250.0,0.00016428,2]
[399798427,1766681433825,-250.0,0.00016428,2]
[399798428,1766681433835,-186.66093114,0.00016428,2]
[399798429,1766681433846,-207.4,0.00016428,2]
[399798430,1766681433856,-500.0,0.00016438,2]
[399798431,1766681433867,-500.0,0.00016438,2]
[399798432,1766681433877,-500.0,0.00016438,2]
[399798433,1766681433888,-500.0,0.00016438,2]
[399798434,1766681433900,-500.0,0.00016438,2]
[399798435,1766681433911,-500.0,0.00016438,2]
[399798436,1766681433922,-500.0,0.00016438,2]
[399798437,1766681433932,-500.0,0.00016438,2]
[399798438,1766681433942,-500.0,0.00016438,2]
[399798439,1766681433953,-500.0,0.00016438,2]
[399798440,1766681433964,-500.0,0.00016438,2]
[399798441,1766681433974,-397.85259273,0.00016438,2]
[399798442,1766681433985,-500.0,0.00016438,2]
[399798443,1766681433995,-500.0,0.00016438,2]
[399798444,1766681434006,-500.0,0.00016438,2]
[399798445,1766681434016,-500.0,0.00016438,2]
[399798446,1766681434027,-500.0,0.00016438,2]
[399798447,1766681434038,-500.0,0.00016438,2]
[399798448,1766681434048,-500.0,0.00016438,2]
[399798449,1766681434058,-500.0,0.00016438,2]
[399798450,1766681434069,-500.0,0.00016438,2]
[399798451,1766681434079,-500.0,0.00016438,2]
[399798452,1766681434090,-500.0,0.00016438,2]
[399798453,1766681434101,-716.0,0.00016438,2]
[399798454,1766681434111,-14220.61,0.00016438,2]
[399798455,1766681434123,-500.0,0.00016438,2]
[399798456,1766681434133,-500.0,0.00016465,2]
[399798457,1766681434144,-222.66594158,0.00016466,2]
[399798458,1766681434158,-150.0,0.00016477,2]
[399798459,1766681434169,-336.0,0.00016489,2]
[399798460,1766681434180,-500.0,0.00016493,2]
[399798461,1766681434190,-150.0,0.00016501,2]
[399798462,1766681434201,-150.0,0.00016501,2]
[399798463,1766681434212,-150.0,0.00016503,2]
[399798464,1766681434222,-442.19136287,0.00016506,2]
[399798465,1766681434232,-500.0,0.0001652,2]
[399798466,1766681434244,-268.85705268,0.00016522,2]
[399798467,1766681434254,-3493.0,0.00016523,2]
[399798468,1766681434265,-150.0,0.00016523,2]
[399798469,1766681434277,-1610.0,0.00016523,2]
[399798470,1766681434288,-612.0,0.00016523,2]
[399798471,1766681434299,-1327.0,0.00016523,2]
[399798472,1766681434310,-3459.0,0.00016523,2]
[399798473,1766681434321,-432.0,0.00016523,2]
[399798474,1766681434332,-1263.0,0.00016523,2]
[399798475,1766681434343,-1198.0,0.00016523,2]
[399798476,1766681434353,-912.0,0.00016523,2]
[399798477,1766681434363,-4807.0,0.00016523,2]
[399798478,1766681434374,-2430.0,0.00016523,2]
[399798479,1766681434384,-150.0,0.00016533,2]
[399798480,1766681434395,-500.0,0.00016548,2]
[399798481,1766681434405,-150.0,0.00016562,2]
[399798482,1766681434415,-218.80351721,0.00016575,2]
[399798483,1766681434426,-500.0,0.00016634,2]
[399798484,1766681434437,-500.0,0.00016634,2]
[399798485,1766681434448,-500.0,0.00016634,2]
[399798486,1766681434459,-500.0,0.00016634,2]
[399798487,1766681434470,-887.35,0.00016634,2]
[399798488,1766681434481,-150.0,0.00016647,2]
[399798489,1766681434491,-150.0,0.00016647,2]
[399798490,1766681434502,-150.0,0.00016647,2]
[399798491,1766681434514,-150.0,0.00016647,2]
[399798492,1766681434525,-195.0,0.00016647,2]
[399798493,1766681434536,-600.0,0.00016647,2]
[399798494,1766681434546,-300.0,0.00016647,2]
[399798495,1766681434558,-195.0,0.00016647,2]
[399798496,1766681434568,-288.49242842,0.00016647,3]
[399798497,1766681434578,-2500.0,0.00016647,2]
[399798498,1766681434591,-9333.80227561,0.0001666,2]
[399798499,1766681434602,-653.0,0.00016667,2]
[399798500,1766681434613,-150.0,0.00016677,2]
[399798501,1766681434625,-3492.918,0.00016707,2]
[399798502,1766681434635,-247.178,0.00016707,2]
[399798503,1766681434646,-163.74,0.00016712,2]
[399798504,1766681434657,-420.0,0.00016726,2]
[399798505,1766681434667,-665.6820002,0.00016731,2]
[399798506,1766681434678,-150.0,0.00016744,2]
[399798507,1766681434689,-150.0,0.00016744,2]
[399798508,1766681434700,-150.0,0.0001676,2]
[399798509,1766681434711,-607.0,0.00016795,2]
[399798510,1766681434721,-2500.0,0.000168,2]
[399798511,1766681434732,-179.41345087,0.000168,2]
[399798512,1766681434742,-261.63673033,0.000168,2]
[399798513,1766681434753,-722.75751117,0.000168,2]
[399798514,1766681434764,-320.46635789,0.000168,2]
[399798515,1766681434774,-3642.43497483,0.000168,2]
[399798516,1766681434785,-3642.43497483,0.00016811,2]
[399798517,1766681434794,-261.63673033,0.00016814,2]
[399798518,1766681434804,-150.0,0.00016816,2]
[399798519,1766681434815,-320.46635788,0.00016817,2]
[399798520,1766681434825,-3642.43497483,0.00016822,2]
[399798521,1766681434836,-209.0,0.00016825,2]
[399798522,1766681434846,-261.63673033,0.00016829,2]
[399798523,1766681434856,-150.0,0.00016832,2]
[399798524,1766681434867,-4161.6220571,0.00016833,2]
[399798525,1766681434878,-320.46635788,0.00016833,2]
[399798526,1766681434887,-3642.43497483,0.00016833,2]
[399798527,1766681434898,-261.63673033,0.00016843,2]
[399798528,1766681434909,-722.75751117,0.00016843,2]
[399798529,1766681434921,-4161.6220571,0.00016844,2]
[399798530,1766681434931,-3642.43497483,0.00016844,2]
[399798531,1766681434941,-320.46635788,0.0001685,2]
[399798532,1766681434953,-4161.6220571,0.00016856,2]
[399798533,1766681434963,-261.63673033,0.00016857,2]
[399798534,1766681434974,-200.0,0.00016863,2]
[399798535,1766681434984,-200.0,0.00016864,2]
[399798536,1766681434995,-200.0,0.00016864,2]
[399798537,1766681435007,-200.0,0.00016864,2]
[399798538,1766681435018,-200.0,0.00016864,2]
[399798539,1766681435030,-4161.6220571,0.00016867,2]
[399798540,1766681435040,-320.46635788,0.00016867,2]
[399798541,1766681435050,-261.63673033,0.00016871,2]
[399798542,1766681435061,-150.0,0.00016873,2]
[399798543,1766681435072,-4161.6220571,0.00016878,2]
[399798544,1766681435083,-320.46635788,0.00016883,2]
[399798545,1766681435093,-261.63673033,0.00016886,2]
[399798546,1766681435104,-722.75751117,0.00016886,2]
[399798547,1766681435115,-4161.6220571,0.00016889,2]
[399798548,1766681435125,-10091.06,0.0001689,2]
[399798549,1766681435136,-10091.06,0.0001689,2]
[399798550,1766681435146,-1745.45151605,0.0001689,2]
[399798551,1766681435157,-150.0,0.00016899,2]
[399798552,1766681435168,-500.0,0.00016899,2]
[399798553,1766681435178,-500.0,0.00016899,2]
[399798554,1766681435189,-500.0,0.00016899,2]
[399798555,1766681435200,-500.0,0.00016899,2]
[399798556,1766681435211,-21838.73706487,0.000169,2]
[399798557,1766681435228,-2264.76171023,0.000169,2]
[399798558,1766681435266,-547.18570405,0.000169,2]
[399798559,1766681435278,-32991.60429665,0.000169,2]
[399798560,1766681435482,-9014.19472848,0.000169,2]
[399798561,1766681435515,-1445.38354475,0.000169,2]
[399798562,1766681435527,-263.74312847,0.000169,2]
[399798569,1766681437763,-151.0,0.00015919,2]
[399798570,1766681437774,-189.35095464,0.00016328,2]
[399798571,1766681437784,-975.33528141,0.00016523,2]
[399798572,1766681437870,-650.0,0.00016523,2]
[399798573,1766681437925,-4908.66471859,0.00016523,2]
[399798574,1766681437936,-3642.43497483,0.00016856,2]
[399798575,1766681437946,-8500.0280512,0.000169,2]
[399798576,1766681437959,-4038.49465,0.000169,2]
[399798577,1766681437971,-580.25878155,0.000169,2]
[399798578,1766681437983,-388.59353548,0.000169,2]
[399798579,1766681437995,-72323.49237444,0.000169,2]
[399798580,1766681438007,-804.36333897,0.000169,2]
[399798581,1766681438019,-1174.0667096,0.000169,2]
[399798582,1766681438032,-13530.75566378,0.000169,2]
[399798583,1766681438045,-1907.28828516,0.000169,2]
[399798584,1766681438057,-12427.28438952,0.000169,2]
[399798585,1766681438070,-3944.69638662,0.000169,2]
[399798586,1766681438082,-489.23389195,0.000169,2]
[399798587,1766681438107,-3027.18735771,0.000169,2]
[399798596,1766681439827,-808498.64640652,0.000169,2]
[399798597,1766681439838,-1926.43051864,0.000169,3]
[399798598,1766681439848,-10000.0,0.000169,2]
[399798599,1766681439859,-4161.6220571,0.000169,2]
[399798600,1766681439868,-25000.0,0.000169,3]
[399798601,1766681439878,-1946.48766576,0.000169,2]
[399798602,1766681439888,-179.41345087,0.000169,2]
[399798603,1766681439898,-261.63673033,0.000169,2]
[399798604,1766681439907,-156.81485744,0.000169,2]
[399798605,1766681439918,-789.11969302,0.000169,2]
[399798606,1766681439928,-1406.60977323,0.000169,2]
[399798607,1766681439938,-17404.91153984,0.000169,2]
[399798608,1766681439948,-320.46635788,0.000169,2]
[399798609,1766681439958,-9790.0,0.000169,2]
[399798610,1766681439968,-27630.9479275,0.00016905,2]
[399798611,1766681439978,-7193.404106,0.00016905,2]
[399798612,1766681439988,-4379.7802128,0.00016905,2]
[399798613,1766681439998,-335.0,0.00016907,2]
[399798614,1766681440008,-335.0,0.00016919,2]
[399798615,1766681440018,-188.55950753,0.00016925,2]
[399798616,1766681440028,-653.0,0.00016937,2]
[399798617,1766681440038,-500.0,0.0001697,2]
[399798618,1766681440048,-800.78551976,0.0001697,2]
[399798619,1766681440057,-255.0,0.00016975,2]
[399798620,1766681440067,-595.37131296,0.00016976,2]
[399798621,1766681440077,-335.0,0.0001698,2]
[399798622,1766681440087,-52287.96,0.00016986,2]
[399798624,1766681440096,-234.65030173,0.00016986,2]
[399798625,1766681440106,-212.19015448,0.00016986,2]
[399798627,1766681440115,-220.68608515,0.00016986,2]
[399798629,1766681440126,-218.37681677,0.00016986,2]
[399798631,1766681440135,-235.18371063,0.00016986,2]
[399798633,1766681440146,-171.10828189,0.00016986,2]
[399798635,1766681440156,-210.28251086,0.00016986,2]
[399798637,1766681440167,-195.8030936,0.00016986,2]
[399798639,1766681440178,-250.03401256,0.00016986,2]
[399798641,1766681440188,-270.36367616,0.00016986,2]
[399798643,1766681440198,-199.77046782,0.00016986,2]
[399798645,1766681440207,-176.41435158,0.00016986,2]
[399798647,1766681440218,-284.4666085,0.00016986,2]
[399798649,1766681440227,-245.69368063,0.00016986,2]
[399798651,1766681440237,-2000.0,0.00016989,2]
[399798653,1766681440247,-2000.0,0.00016989,2]
[399798655,1766681440257,-2000.0,0.00016989,2]
[399798657,1766681440268,-1745.45151605,0.0001699,2]
[399798658,1766681440279,-1745.45151605,0.0001699,2]
[399798660,1766681440289,-1000.0,0.0001699,2]
[399798662,1766681440299,-1000.0,0.0001699,2]
[399798664,1766681440309,-1000.0,0.0001699,2]
[399798666,1766681440319,-1000.0,0.0001699,2]
[399798668,1766681440329,-1000.0,0.0001699,2]
[399798670,1766681440339,-1000.0,0.0001699,2]
[399798672,1766681440350,-916.272,0.0001699,2]
[399798674,1766681440360,-1000.0,0.0001699,2]
[399798676,1766681440370,-1000.0,0.0001699,2]
[399798678,1766681440379,-1000.0,0.0001699,2]
[399798680,1766681440389,-1000.0,0.0001699,2]
[399798682,1766681440400,-1000.0,0.0001699,2]
[399798684,1766681440410,-1000.0,0.0001699,2]
[399798686,1766681440420,-1000.0,0.0001699,2]
[399798688,1766681440430,-1000.0,0.0001699,2]
[399798690,1766681440439,-1000.0,0.0001699,2]
[399798692,1766681440448,-1000.0,0.0001699,2]
[399798694,1766681440458,-1000.0,0.0001699,2]
[399798696,1766681440467,-1000.0,0.0001699,2]
[399798698,1766681440477,-1000.0,0.0001699,2]
[399798700,1766681440487,-347.511,0.0001699,2]
[399798702,1766681440497,-1000.0,0.00016996,2]
[399798703,1766681440509,-1060.87558749,0.00016999,5]
[399798705,1766681440519,-55741.3394107,0.00016999,2]
[399798707,1766681440529,-500.0,0.00016999,2]
[399798709,1766681440539,-500.0,0.00016999,2]
[399798711,1766681440548,-500.0,0.00016999,2]
[399798712,1766681440557,-500.0,0.00016999,2]
[399798713,1766681440567,-500.0,0.00016999,2]
[399798714,1766681440579,-500.0,0.00016999,2]
[399798715,1766681440590,-500.0,0.00016999,2]
[399798716,1766681440600,-500.0,0.00016999,2]
[399798717,1766681440611,-500.0,0.00016999,2]
[399798718,1766681440621,-500.0,0.00016999,2]
[399798719,1766681440631,-500.0,0.00016999,2]
[399798720,1766681440641,-500.0,0.00016999,2]
[399798721,1766681440651,-500.0,0.00016999,2]
[399798722,1766681440660,-500.0,0.00016999,2]
[399798723,1766681440671,-500.0,0.00016999,2]
[399798724,1766681440680,-500.0,0.00016999,2]
[399798725,1766681440689,-500.0,0.00016999,2]
[399798726,1766681440699,-340.27167877,0.00016999,2]
[399798727,1766681440709,-300.0,0.00016999,2]
[399798728,1766681440719,-500.0,0.00016999,2]
[399798729,1766681440729,-451.48949058,0.00016999,2]
[399798730,1766681440739,-300.0,0.00016999,2]
[399798731,1766681440748,-500.0,0.00016999,2]
[399798732,1766681440757,-666.0,0.00016999,2]
[399798733,1766681440767,-300.0,0.00016999,2]
[399798734,1766681440776,-666.0,0.00016999,2]
[399798735,1766681440785,-500.0,0.00016999,2]
[399798736,1766681440795,-500.0,0.00016999,2]
[399798737,1766681440805,-500.0,0.00016999,2]
[399798738,1766681440814,-500.0,0.00016999,2]
[399798739,1766681440824,-534.14774107,0.00016999,2]
[399798740,1766681440834,-887.35,0.00016999,2]
[399798741,1766681440845,-887.35,0.00016999,2]
[399798742,1766681440854,-887.35,0.00016999,2]
[399798743,1766681440864,-887.35,0.00016999,2]
[399798744,1766681440874,-887.35,0.00016999,2]
[399798745,1766681440883,-887.35,0.00016999,2]
[399798746,1766681440893,-887.35,0.00016999,2]
[399798747,1766681440903,-887.35,0.00016999,2]
[399798748,1766681440912,-887.35,0.00016999,2]
[399798749,1766681440922,-887.35,0.00016999,2]
[399798750,1766681440932,-887.35,0.00016999,2]
[399798751,1766681440942,-887.35,0.00016999,2]
[399798752,1766681440952,-887.35,0.00016999,2]
[399798753,1766681440961,-887.35,0.00016999,2]
[399798754,1766681440971,-887.35,0.00016999,2]
[399798755,1766681440981,-887.35,0.00016999,2]
[399798756,1766681440992,-887.35,0.00016999,2]
[399798757,1766681441002,-887.35,0.00016999,2]
[399798758,1766681441012,-887.35,0.00016999,2]
[399798759,1766681441022,-887.35,0.00016999,2]
[399798760,1766681441032,-887.35,0.00016999,2]
[399798761,1766681441042,-887.35,0.00016999,2]
[399798762,1766681441052,-887.43767856,0.00016999,2]
[399798763,1766681441061,-300.0,0.00016999,2]
[399798764,1766681441071,-150.0,0.00017,2]
[399798765,1766681441080,-4333209.07210846,0.00017,2]
[399798766,1766681441103,-5558.2500015,0.00017,2]
[399798772,1766681442819,-523.99083675,0.00016523,2]
[399798773,1766681442832,-40.00916325,0.00016523,2]
[399798774,1766681442842,-608.92935672,0.00016867,2]
[399798775,1766681443080,-3033.50561811,0.00016867,2]
[399798776,1766681443092,-9795.63809366,0.00017,2]
[399798777,1766681443104,-38877.25375424,0.00017,2]
[399798778,1766681443117,-457.10686771,0.00017,2]
[399798779,1766681443128,-880.0,0.00017,2]
[399798796,1766681445962,-934.40077117,0.00017,2]
[399798797,1766681445975,-794.30477733,0.00017,2]
[399798798,1766681446066,-4892.23422473,0.00017,2]
[399798869,1766681528359,201.98303125,0.000119,2]
[399798870,1766681531515,500.0,0.000119,2]
[399798871,1766681531558,1000.0,0.00012448,2]
[399798872,1766681531600,1500.0,0.00012996,2]
[399798873,1766681552223,525.9,0.00032877,120]
[399798874,1766681567211,532.71,0.00032713,120]
[399798887,1766681597680,500.0,0.00030913,120]
[399798891,1766681604987,628.25452076,0.000119,2]
[399798900,1766681707463,500.0,0.000119,2]
[399798901,1766681707501,696.22588074,0.00012448,2]
[399798903,1766681791424,500.0,0.00032876,120]
[399798904,1766681791856,500.0,0.00032876,120]
[399798905,1766681791923,500.0,0.00032876,120]
[399798906,1766681792120,500.0,0.00032876,120]
[399798907,1766681792371,500.0,0.00032876,120]
[399798908,1766681792631,500.0,0.00032876,120]
[399798909,1766681943173,97.458887,0.000119,2]
[399798910,1766681943204,403.31243356,0.000119,2]
[399798911,1766681954183,3298.0,0.00032877,120]
[399798912,1766682023475,500.0,0.00032876,120]
[399798920,1766682196510,500.0,0.00030913,120]
[399798921,1766682238581,279.21,0.00032877,120]
[399798922,1766682267549,639.92,0.0003287,120]
[399798923,1766682296715,2065.0,0.00032876,120]
[399798925,1766682381417,217.19,0.00031507,120]
[399798929,1766682631832,-1000.0,0.00013699,2]
[399798930,1766682631843,-250.0,0.00013699,2]
[399798931,1766682631854,-195.0,0.000137,2]
[399798932,1766682631864,-600.0,0.00013702,2]
[399798933,1766682631874,-172.18570901,0.00013702,2]
[399798934,1766682631884,-195.0,0.00013705,2]
[399798935,1766682631894,-300.0,0.00013711,2]
[399798936,1766682631904,-600.0,0.00013723,2]
[399798937,1766682631914,-195.0,0.00013736,2]
[399798938,1766682631924,-189.41169824,0.00013847,2]
[399798939,1766682631934,-999.0,0.00014397,3]
[399798940,1766682631944,-200.0,0.00014544,2]
[399798941,1766682631954,-254.88,0.00014593,2]
[399798942,1766682631964,-1200.0,0.00014669,2]
[399798943,1766682631975,-1811.07422364,0.0001467,2]
[399798944,1766682631988,-1428.92577636,0.0001467,2]
[399798945,1766682631998,-502.0,0.00015041,2]
[399798946,1766682632008,-600.0,0.00015068,2]
[399798947,1766682632019,-300.0,0.00015068,2]
[399798948,1766682632029,-195.0,0.00015068,2]
[399798950,1766682632039,-600.0,0.00015068,2]
[399798951,1766682632050,-300.0,0.00015068,2]
[399798953,1766682632060,-195.0,0.00015068,2]
[399798955,1766682632071,-300.0,0.00015068,2]
[399798957,1766682632080,-221.09716584,0.00015068,2]
[399798959,1766682632093,-28.90283416,0.00015068,2]
[399798961,1766682632103,-416.70720525,0.00015099,2]
[399798965,1766682632133,-839.29279475,0.00015099,2]
[399798967,1766682632144,-1256.0,0.00015099,2]
[399798969,1766682632154,-1256.0,0.00015099,2]
[399798971,1766682632164,-1256.0,0.00015099,2]
[399798975,1766682632174,-330.87823969,0.00015185,2]
[399798978,1766682632189,-8650.44310081,0.00015185,2]
[399798980,1766682632199,-10257.2534853,0.00015185,2]
[399798982,1766682632210,-300.0,0.00015209,2]
[399798984,1766682632220,-188.19993688,0.00015209,2]
[399798986,1766682632230,-560.59067528,0.00015209,2]
[399798988,1766682632240,-144573.33943076,0.0001521,2]
[399798992,1766682632273,-2895.1177145,0.0001521,2]
[399798995,1766682632293,-6553.8,0.0001521,2]
[399798998,1766682632316,-5877.37621988,0.0001521,2]
[399799051,1766682637899,-2224.23406626,0.0001521,2]
[399799061,1766682638268,-592.47286909,0.0001521,2]
[399799065,1766682638304,-89809.67995766,0.0001521,2]
[399799068,1766682638316,-588.35815955,0.0001521,2]
[399799070,1766682638332,-274.85538275,0.0001521,2]
[399799229,1766682640369,-268.361,0.0001521,2]
[399799230,1766682640382,-363.25709748,0.0001521,2]
[399799231,1766682640394,-745979.14810207,0.0001521,2]
[399799232,1766682640405,-190.41715558,0.00015288,2]
[399799233,1766682640416,-150.0,0.00015288,2]
[399799234,1766682640426,-150.0,0.00015288,2]
[399799235,1766682640435,-150.0,0.00015288,2]
[399799237,1766682640445,-217.62219692,0.00015288,2]
[399799239,1766682640455,-150.0,0.00015288,2]
[399799241,1766682640464,-150.0,0.00015288,2]
[399799243,1766682640473,-150.0,0.00015288,2]
[399799245,1766682640483,-174.03875056,0.00015288,2]
[399799247,1766682640492,-150.0,0.00015288,2]
[399799249,1766682640502,-150.0,0.00015288,2]
[399799251,1766682640511,-150.0,0.00015288,2]
[399799253,1766682640521,-150.0,0.00015288,2]
[399799255,1766682640531,-150.0,0.00015288,2]
[399799256,1766682640540,-150.0,0.00015288,2]
[399799259,1766682640549,-150.0,0.00015288,2]
[399799261,1766682640559,-174.03875056,0.00015305,2]
[399799263,1766682640568,-150.0,0.00015308,2]
[399799264,1766682640577,-150.0,0.00015309,2]
[399799266,1766682640587,-500.0,0.0001531,2]
[399799268,1766682640597,-9999.99,0.0001531,2]
[399799270,1766682640606,-27978.45,0.0001531,2]
[399799272,1766682640616,-150.99,0.0001531,2]
[399799275,1766682640626,-150.0,0.00015316,2]
[399799277,1766682640635,-150.0,0.00015319,2]
[399799279,1766682640644,-174.03875056,0.00015322,2]
[399799281,1766682640654,-150.0,0.00015325,2]
[399799283,1766682640664,-150.0,0.00015328,2]
[399799285,1766682640673,-150.0,0.0001533,2]
[399799287,1766682640683,-150.0,0.00015336,2]
[399799289,1766682640694,-174.03875056,0.00015339,2]
[399799291,1766682640704,-150.0,0.00015345,2]
[399799293,1766682640713,-150.0,0.00015348,2]
[399799295,1766682640723,-150.0,0.00015349,2]
[399799297,1766682640732,-150.0,0.00015351,2]
[399799298,1766682640743,-174.03875056,0.00015356,2]
[399799299,1766682640752,-150.0,0.00015362,2]
[399799300,1766682640761,-150.0,0.00015362,2]
[399799301,1766682640772,-150.0,0.00015368,2]
[399799302,1766682640781,-150.0,0.00015373,2]
[399799303,1766682640791,-174.03875056,0.00015373,2]
[399799304,1766682640801,-150.0,0.00015374,2]
[399799305,1766682640809,-8650.44310075,0.00015376,2]
[399799306,1766682640820,-10257.25348525,0.00015376,2]
[399799307,1766682640830,-150.0,0.00015377,2]
[399799308,1766682640839,-150.0,0.0001538,2]
[399799309,1766682640849,-150.0,0.00015385,2]
[399799310,1766682640859,-150.0,0.00015388,2]